fUSD/lending_fUSD_20260610
["ID","MTS","AMOUNT","RATE_DAILY","PERIOD"]
[424731141,1781094653000,-570.0,0.00030137,2]
[424731116,1781094653000,-2111.72,0.0003,7]
[424731115,1781094653000,-284.95203121,0.0003,7]
[424731142,1781094653000,-570.0,0.00030137,2]
[424731117,1781094653000,-500.1,0.0003003,2]
[424731090,1781094653000,-217.93422179,0.00029615,2]
[424731093,1781094653000,-542.46559626,0.00029664,2]
[424731095,1781094653000,-515.39,0.00029716,2]
[424731099,1781094653000,-240.0,0.00029889,3]
[424731092,1781094653000,-259.94548218,0.00029664,2]
[424731091,1781094653000,-234.65695278,0.00029615,2]
[424731094,1781094653000,-464.6848827,0.00029664,2]
[424731118,1781094653000,-500.1,0.0003003,2]
[424731100,1781094653000,-151.0,0.00029889,3]
[424731096,1781094653000,-500.0,0.00029739,19]
[424731098,1781094653000,-167.71986107,0.0002983,3]
[424731102,1781094653000,-647.0,0.00029899,13]
[424731097,1781094653000,-736.56,0.00029809,7]
[424731105,1781094653000,-225.18697532,0.00029991,2]
[424731103,1781094653000,-289.85051509,0.000299,2]
[424731113,1781094653000,-1994.5246291,0.0003,2]
[424731112,1781094653000,-650.0,0.0003,2]
[424731108,1781094653000,-250.12665989,0.00029991,2]
[424731110,1781094653000,-369.24803815,0.0003,30]
[424731114,1781094653000,-200.0,0.0003,2]
[424731111,1781094653000,-59097.6935469,0.0003,7]
[424731106,1781094653000,-151.0,0.00029991,2]
[424731107,1781094653000,-270.0455652,0.00029991,2]
[424731104,1781094653000,-289.85051509,0.000299,2]
[424731101,1781094653000,-159.50863795,0.00029889,3]
[424731109,1781094653000,-59097.69354689,0.0003,7]
[424731188,1781094654000,-200.3873064,0.0003019,2]
[424731174,1781094654000,-482.87408367,0.0003019,2]
[424731177,1781094654000,-461.51104148,0.0003019,2]
[424731178,1781094654000,-604.31859846,0.0003019,2]
[424731173,1781094654000,-642.19178341,0.0003019,2]
[424731180,1781094654000,-150.55645213,0.0003019,2]
[424731170,1781094654000,-573.50137102,0.0003019,2]
[424731172,1781094654000,-648.92484341,0.0003019,2]
[424731175,1781094654000,-212.27806,0.0003019,2]
[424731179,1781094654000,-265.6924333,0.0003019,2]
[424731190,1781094654000,-413.35119911,0.0003019,2]
[424731197,1781094654000,-315.39846833,0.0003019,2]
[424731181,1781094654000,-671.61598001,0.0003019,2]
[424731182,1781094654000,-266.31373874,0.0003019,2]
[424731183,1781094654000,-441.87908144,0.0003019,2]
[424731184,1781094654000,-1087.45495182,0.0003019,2]
[424731185,1781094654000,-263.8276857,0.0003019,2]
[424731186,1781094654000,-201.82217861,0.0003019,2]
[424731187,1781094654000,-424.27116041,0.0003019,2]
[424731191,1781094654000,-385.03268529,0.0003019,2]
[424731193,1781094654000,-639.13179636,0.0003019,2]
[424731194,1781094654000,-183.69698338,0.0003019,2]
[424731196,1781094654000,-365.1177954,0.0003019,2]
[424731176,1781094654000,-803.14851884,0.0003019,2]
[424731189,1781094654000,-308.61377285,0.0003019,2]
[424731171,1781094654000,-328.21741537,0.0003019,2]
[424731166,1781094654000,-233.51984573,0.0003019,2]
[424731164,1781094654000,-169.25841594,0.0003019,2]
[424731192,1781094654000,-325.57646544,0.0003019,2]
[424731145,1781094654000,-200.0,0.00030137,2]
[424731144,1781094654000,-200.0,0.00030137,2]
[424731146,1781094654000,-200.0,0.00030137,2]
[424731148,1781094654000,-186.53480136,0.0003019,2]
[424731149,1781094654000,-336.00003775,0.0003019,2]
[424731151,1781094654000,-182.82440843,0.0003019,2]
[424731152,1781094654000,-467.94997419,0.0003019,2]
[424731153,1781094654000,-179.16425395,0.0003019,2]
[424731147,1781094654000,-342.75265221,0.0003019,2]
[424731150,1781094654000,-478.52829234,0.0003019,2]
[424731169,1781094654000,-214.4419437,0.0003019,2]
[424731154,1781094654000,-432.75550045,0.0003019,2]
[424731156,1781094654000,-518.99769508,0.0003019,2]
[424731158,1781094654000,-264.93580823,0.0003019,2]
[424731157,1781094654000,-896.885289,0.0003019,2]
[424731167,1781094654000,-382.22948702,0.0003019,2]
[424731162,1781094654000,-396.69558007,0.0003019,2]
[424731168,1781094654000,-1072.22595237,0.0003019,2]
[424731159,1781094654000,-272.42012063,0.0003019,2]
[424731160,1781094654000,-388.37211142,0.0003019,2]
[424731163,1781094654000,-315.98830037,0.0003019,2]
[424731161,1781094654000,-494.41904141,0.0003019,2]
[424731165,1781094654000,-670.13673755,0.0003019,2]
[424731155,1781094654000,-776.72522369,0.0003019,2]
[424731198,1781094654000,-276.9077719,0.0003019,2]
[424731251,1781094654000,-519.89096436,0.00030241,2]
[424731199,1781094654000,-394.07897693,0.0003019,2]
[424731228,1781094654000,-1179.0,0.00030206,30]
[424731229,1781094654000,-150.0,0.00030206,30]
[424731226,1781094654000,-469.31390555,0.00030191,2]
[424731230,1781094654000,-150.0,0.00030206,30]
[424731231,1781094654000,-236.0,0.00030206,30]
[424731232,1781094654000,-890.0,0.00030222,30]
[424731235,1781094654000,-255.0,0.00030222,30]
[424731239,1781094654000,-212.0,0.0003023,30]
[424731242,1781094654000,-256.0,0.0003023,30]
[424731236,1781094654000,-374.01065109,0.00030224,2]
[424731237,1781094654000,-248.0,0.0003023,30]
[424731224,1781094654000,-718.13706933,0.00030191,2]
[424731238,1781094654000,-266.0,0.0003023,30]
[424731245,1781094654000,-289.0,0.0003023,30]
[424731243,1781094654000,-217.0,0.0003023,30]
[424731244,1781094654000,-793.0,0.0003023,30]
[424731246,1781094654000,-249.0,0.0003023,30]
[424731247,1781094654000,-1540.87,0.00030237,4]
[424731248,1781094654000,-226.9,0.00030239,2]
[424731249,1781094654000,-228.08904723,0.00030241,2]
[424731252,1781094654000,-723.28746169,0.00030241,2]
[424731250,1781094654000,-264.60155904,0.00030241,2]
[424731195,1781094654000,-411.13355158,0.0003019,2]
[424731253,1781094654000,-619.57984361,0.00030241,2]
[424731241,1781094654000,-811.0,0.0003023,30]
[424731234,1781094654000,-515.0,0.00030222,30]
[424731240,1781094654000,-735.0,0.0003023,30]
[424731233,1781094654000,-293.0,0.00030222,30]
[424731201,1781094654000,-710.10241617,0.0003019,2]
[424731227,1781094654000,-435.86844357,0.00030191,2]
[424731203,1781094654000,-686.24685935,0.0003019,2]
[424731202,1781094654000,-705.24625709,0.0003019,2]
[424731206,1781094654000,-411.17925677,0.0003019,2]
[424731205,1781094654000,-603.05310929,0.0003019,2]
[424731204,1781094654000,-703.6574527,0.0003019,2]
[424731207,1781094654000,-224.46304643,0.0003019,2]
[424731209,1781094654000,-461.34209463,0.0003019,2]
[424731208,1781094654000,-155.61511032,0.0003019,2]
[424731211,1781094654000,-605.93958599,0.0003019,2]
[424731210,1781094654000,-323.89609535,0.0003019,2]
[424731212,1781094654000,-586.45652962,0.0003019,2]
[424731200,1781094654000,-551.32172015,0.0003019,2]
[424731220,1781094654000,-482.5267518,0.00030191,2]
[424731216,1781094654000,-604.98822447,0.00030191,2]
[424731215,1781094654000,-721.62434674,0.00030191,2]
[424731219,1781094654000,-389.02461309,0.00030191,2]
[424731214,1781094654000,-809.80119908,0.0003019,2]
[424731217,1781094654000,-517.27249335,0.00030191,2]
[424731218,1781094654000,-476.09308045,0.00030191,2]
[424731222,1781094654000,-679.72211348,0.00030191,2]
[424731223,1781094654000,-644.85899641,0.00030191,2]
[424731221,1781094654000,-506.09977629,0.00030191,2]
[424731213,1781094654000,-429.5596691,0.0003019,2]
[424731225,1781094654000,-370.80025147,0.00030191,2]
[424731284,1781094655000,-200.0,0.00030743,2]
[424731283,1781094655000,-200.0,0.00030743,2]
[424731286,1781094655000,-1121.10661125,0.00030766,2]
[424731288,1781094655000,-802.73972926,0.00030766,2]
[424731281,1781094655000,-200.0,0.00030743,2]
[424731287,1781094655000,-1340.28244046,0.00030766,2]
[424731291,1781094655000,-879.57181588,0.00030766,2]
[424731285,1781094655000,-970.90652961,0.00030766,2]
[424731292,1781094655000,-1359.31868977,0.00030766,2]
[424731289,1781094655000,-755.39824807,0.00030766,2]
[424731290,1781094655000,-839.51997502,0.00030766,2]
[424731293,1781094655000,-798.91474545,0.00030766,2]
[424731300,1781094655000,-849.65264185,0.00030767,2]
[424731296,1781094655000,-753.81638662,0.00030766,2]
[424731297,1781094655000,-757.42448249,0.00030766,2]
[424731294,1781094655000,-887.62802021,0.00030766,2]
[424731298,1781094655000,-1012.25149886,0.00030766,2]
[424731299,1781094655000,-756.23528059,0.00030767,2]
[424731302,1781094655000,-897.67133666,0.00030767,2]
[424731301,1781094655000,-806.07374551,0.00030767,2]
[424731305,1781094655000,-736.56,0.00030888,14]
[424731312,1781094655000,-3416.08655466,0.00031087,9]
[424731304,1781094655000,-150.0,0.00030841,2]
[424731308,1781094655000,-200.0,0.0003105,2]
[424731295,1781094655000,-881.55782136,0.00030766,2]
[424731282,1781094655000,-200.0,0.00030743,2]
[424731255,1781094655000,-201.92594505,0.00030241,2]
[424731273,1781094655000,-151.0,0.00030539,2]
[424731310,1781094655000,-200.0,0.0003105,2]
[424731257,1781094655000,-481.58500183,0.00030241,2]
[424731256,1781094655000,-333.64164255,0.00030241,2]
[424731254,1781094655000,-158.99859323,0.00030241,2]
[424731258,1781094655000,-339.17733709,0.00030241,2]
[424731263,1781094655000,-563.27484258,0.00030267,2]
[424731260,1781094655000,-500.1,0.00030267,2]
[424731259,1781094655000,-153.80113636,0.00030262,2]
[424731265,1781094655000,-853.14,0.00030413,7]
[424731261,1781094655000,-500.1,0.00030267,2]
[424731262,1781094655000,-500.1,0.00030267,2]
[424731266,1781094655000,-200.0,0.00030438,2]
[424731267,1781094655000,-200.0,0.00030438,2]
[424731264,1781094655000,-150.0,0.00030411,30]
[424731268,1781094655000,-200.0,0.00030438,2]
[424731269,1781094655000,-200.0,0.00030438,2]
[424731278,1781094655000,-191.0,0.00030685,30]
[424731277,1781094655000,-150.0,0.00030685,30]
[424731280,1781094655000,-169.73,0.00030697,3]
[424731279,1781094655000,-150.0,0.00030685,30]
[424731276,1781094655000,-150.0,0.00030685,30]
[424731270,1781094655000,-647.0,0.00030525,13]
[424731272,1781094655000,-233.5188934,0.00030539,2]
[424731271,1781094655000,-225.8,0.00030529,7]
[424731274,1781094655000,-280.03725111,0.00030539,2]
[424731275,1781094655000,-500.0,0.00030631,20]
[424731307,1781094655000,-2000.0,0.00031,2]
[424731303,1781094655000,-774.47480451,0.00030818,2]
[424731311,1781094655000,-200.0,0.0003105,2]
[424731342,1781094655000,-150.312367,0.00031237,2]
[424731341,1781094655000,-150.0,0.00031233,30]
[424731343,1781094655000,-350.0,0.00031253,19]
[424731345,1781094655000,-200.0,0.00031361,2]
[424731344,1781094655000,-200.0,0.00031361,2]
[424731346,1781094655000,-200.0,0.00031361,2]
[424731353,1781094655000,-150.0,0.00031488,7]
[424731347,1781094655000,-200.0,0.00031361,2]
[424731358,1781094655000,-1274.0,0.00031492,2]
[424731355,1781094655000,-150.0,0.00031488,7]
[424731348,1781094655000,-257.15629635,0.00031488,7]
[424731350,1781094655000,-150.0,0.00031488,7]
[424731351,1781094655000,-150.0,0.00031488,7]
[424731349,1781094655000,-150.56153269,0.00031488,7]
[424731354,1781094655000,-150.0,0.00031488,7]
[424731357,1781094655000,-150.0,0.00031488,7]
[424731352,1781094655000,-150.0,0.00031488,7]
[424731356,1781094655000,-150.0,0.00031488,7]
[424731360,1781094655000,-497.43023034,0.0003155,22]
[424731359,1781094655000,-150.0,0.00031507,30]
[424731362,1781094655000,-1165.08783554,0.0003163,2]
[424731361,1781094655000,-150.0,0.00031597,7]
[424731365,1781094655000,-906.47789768,0.0003163,2]
[424731364,1781094655000,-1608.33892855,0.0003163,2]
[424731306,1781094655000,-150.0,0.00030959,30]
[424731340,1781094655000,-249.0,0.0003123,30]
[424731338,1781094655000,-793.0,0.0003123,30]
[424731363,1781094655000,-1345.3279335,0.0003163,2]
[424731336,1781094655000,-256.0,0.0003123,30]
[424731337,1781094655000,-217.0,0.0003123,30]
[424731309,1781094655000,-200.0,0.0003105,2]
[424731315,1781094655000,-413.62587612,0.00031087,2]
[424731314,1781094655000,-151.0,0.00031087,2]
[424731322,1781094655000,-3000.0,0.00031206,30]
[424731319,1781094655000,-150.0,0.00031153,2]
[424731316,1781094655000,-585.89,0.00031096,5]
[424731317,1781094655000,-266.0,0.00031139,3]
[424731318,1781094655000,-647.0,0.00031152,14]
[424731323,1781094655000,-3000.0,0.00031206,30]
[424731321,1781094655000,-3000.0,0.00031206,30]
[424731320,1781094655000,-1000.0,0.000312,7]
[424731313,1781094655000,-242.15909246,0.00031087,2]
[424731335,1781094655000,-811.0,0.0003123,30]
[424731325,1781094655000,-3000.0,0.00031206,30]
[424731339,1781094655000,-289.0,0.0003123,30]
[424731333,1781094655000,-212.0,0.0003123,30]
[424731330,1781094655000,-255.0,0.00031222,30]
[424731327,1781094655000,-890.0,0.00031222,30]
[424731329,1781094655000,-515.0,0.00031222,30]
[424731332,1781094655000,-266.0,0.0003123,30]
[424731334,1781094655000,-735.0,0.0003123,30]
[424731328,1781094655000,-293.0,0.00031222,30]
[424731326,1781094655000,-3000.0,0.00031206,30]
[424731324,1781094655000,-3000.0,0.00031206,30]
[424731331,1781094655000,-248.0,0.0003123,30]
[424731401,1781094656000,-215.66767282,0.00032,120]
[424731406,1781094656000,-438.15413971,0.00032,120]
[424731404,1781094656000,-627.7417341,0.00032,120]
[424731398,1781094656000,-225.31833327,0.00032,120]
[424731395,1781094656000,-220.65966076,0.00032,120]
[424731396,1781094656000,-199.66604063,0.00032,120]
[424731397,1781094656000,-200.06395077,0.00032,120]
[424731400,1781094656000,-227.85244555,0.00032,120]
[424731394,1781094656000,-169.79529576,0.00032,120]
[424731399,1781094656000,-178.16911929,0.00032,120]
[424731402,1781094656000,-176.44574362,0.00032,120]
[424731413,1781094656000,-184.79587009,0.00032,120]
[424731407,1781094656000,-182.32151297,0.00032,120]
[424731408,1781094656000,-184.79587008,0.00032,120]
[424731410,1781094656000,-183.07677686,0.00032,120]
[424731411,1781094656000,-6680.0,0.00032,5]
[424731405,1781094656000,-203.8527085,0.00032,120]
[424731403,1781094656000,-222.59931958,0.00032,120]
[424731409,1781094656000,-182.32151297,0.00032,120]
[424731415,1781094656000,-284.95203121,0.00032,30]
[424731425,1781094656000,-226.9,0.0003221,5]
[424731414,1781094656000,-700.0,0.00032,2]
[424731393,1781094656000,-462.37439283,0.00032,120]
[424731418,1781094656000,-523.5,0.00032055,5]
[424731412,1781094656000,-1052.31904874,0.00032,120]
[424731391,1781094656000,-222.27663922,0.00032,120]
[424731377,1781094656000,-151.0,0.00031633,2]
[424731390,1781094656000,-260.4097324,0.00032,120]
[424731417,1781094656000,-150.0,0.00032034,7]
[424731366,1781094656000,-1007.42397002,0.0003163,2]
[424731367,1781094656000,-1055.48617906,0.0003163,2]
[424731368,1781094656000,-1631.18242773,0.0003163,2]
[424731369,1781094656000,-958.69769454,0.0003163,2]
[424731370,1781094656000,-1065.15362425,0.0003163,2]
[424731371,1781094656000,-1057.86938563,0.0003163,2]
[424731374,1781094656000,-967.28849461,0.00031631,2]
[424731379,1781094656000,-251.11897888,0.00031635,2]
[424731372,1781094656000,-153.80113636,0.00031631,2]
[424731373,1781094656000,-1019.58317022,0.00031631,2]
[424731392,1781094656000,-503.92688212,0.00032,120]
[424731375,1781094656000,-1077.205604,0.00031631,2]
[424731378,1781094656000,-775.4783256,0.00031633,2]
[424731380,1781094656000,-273.35166149,0.00031635,2]
[424731384,1781094656000,-150.0,0.00031816,7]
[424731382,1781094656000,-150.0,0.00031706,7]
[424731383,1781094656000,-647.0,0.00031778,14]
[424731385,1781094656000,-150.0,0.00031876,7]
[424731386,1781094656000,-150.0,0.00031925,7]
[424731389,1781094656000,-194.94433173,0.00032,120]
[424731381,1781094656000,-1086.55396879,0.00031662,2]
[424731387,1781094656000,-736.56,0.00031968,14]
[424731388,1781094656000,-10413.96117987,0.00032,31]
[424731376,1781094656000,-621.78829552,0.00031633,2]
[424731422,1781094656000,-2000.0,0.000321,2]
[424731423,1781094656000,-150.0,0.00032144,7]
[424731416,1781094656000,-215.92376884,0.00032,30]
[424731451,1781094656000,-5000.0,0.00032232,60]
[424731453,1781094656000,-150.0,0.00032253,7]
[424731457,1781094656000,-150.0,0.00032383,2]
[424731455,1781094656000,-157.14,0.000323,7]
[424731459,1781094656000,-59097.69354689,0.0003247,7]
[424731460,1781094656000,-59097.6935469,0.0003247,7]
[424731458,1781094656000,-647.0,0.00032404,15]
[424731452,1781094656000,-5000.0,0.00032232,60]
[424731454,1781094656000,-150.0,0.00032265,7]
[424731462,1781094656000,-225.8,0.00032507,14]
[424731463,1781094656000,-150.0,0.00032581,7]
[424731464,1781094656000,-150.0,0.00032654,7]
[424731466,1781094656000,-150.0,0.00032654,7]
[424731465,1781094656000,-150.0,0.00032654,7]
[424731468,1781094656000,-295.03,0.00032677,2]
[424731469,1781094656000,-150.0,0.0003269,7]
[424731467,1781094656000,-150.0,0.00032654,7]
[424731470,1781094656000,-270.0455652,0.00032731,2]
[424731471,1781094656000,-150.0,0.000328,7]
[424731472,1781094656000,-213.0,0.00032869,3]
[424731475,1781094656000,-500.0,0.00032877,7]
[424731473,1781094656000,-170.1,0.00032877,2]
[424731476,1781094656000,-500.0,0.00032877,7]
[424731420,1781094656000,-150.0,0.00032071,7]
[424731474,1781094656000,-606.36606351,0.00032877,2]
[424731456,1781094656000,-150.0,0.00032362,7]
[424731447,1781094656000,-151.0,0.00032232,7]
[424731461,1781094656000,-150.0,0.00032472,7]
[424731443,1781094656000,-50000.0,0.00032232,30]
[424731445,1781094656000,-187.354788,0.00032232,7]
[424731421,1781094656000,-150.0,0.00032071,7]
[424731424,1781094656000,-260.4103811,0.00032183,2]
[424731426,1781094656000,-890.0,0.00032222,30]
[424731428,1781094656000,-515.0,0.00032222,30]
[424731431,1781094656000,-266.0,0.0003223,30]
[424731429,1781094656000,-255.0,0.00032222,30]
[424731437,1781094656000,-793.0,0.0003223,30]
[424731434,1781094656000,-811.0,0.0003223,30]
[424731427,1781094656000,-293.0,0.00032222,30]
[424731438,1781094656000,-289.0,0.0003223,30]
[424731435,1781094656000,-256.0,0.0003223,30]
[424731430,1781094656000,-248.0,0.0003223,30]
[424731419,1781094656000,-150.0,0.00032071,7]
[424731444,1781094656000,-189.708723,0.00032232,7]
[424731432,1781094656000,-212.0,0.0003223,30]
[424731442,1781094656000,-50000.0,0.00032232,60]
[424731446,1781094656000,-151.0,0.00032232,7]
[424731439,1781094656000,-249.0,0.0003223,30]
[424731441,1781094656000,-50000.0,0.00032232,90]
[424731449,1781094656000,-229.0,0.00032232,60]
[424731448,1781094656000,-151.0,0.00032232,7]
[424731440,1781094656000,-50000.0,0.00032232,120]
[424731433,1781094656000,-735.0,0.0003223,30]
[424731436,1781094656000,-217.0,0.0003223,30]
[424731450,1781094656000,-5000.0,0.00032232,60]
[424731515,1781094657000,-438.15413971,0.00033,120]
[424731512,1781094657000,-176.44574362,0.00033,120]
[424731511,1781094657000,-227.85244555,0.00033,120]
[424731513,1781094657000,-627.7417341,0.00033,120]
[424731514,1781094657000,-203.8527085,0.00033,120]
[424731502,1781094657000,-1234.1809499,0.00032926,2]
[424731508,1781094657000,-169.79529576,0.00033,120]
[424731510,1781094657000,-178.16911929,0.00033,120]
[424731509,1781094657000,-200.06395077,0.00033,120]
[424731516,1781094657000,-182.32151297,0.00033,120]
[424731503,1781094657000,-1189.51369859,0.00032927,2]
[424731517,1781094657000,-184.79587008,0.00033,120]
[424731518,1781094657000,-183.07677686,0.00033,120]
[424731524,1781094657000,-160.0,0.00033,120]
[424731520,1781094657000,-265.0,0.00033,120]
[424731519,1781094657000,-1052.31904874,0.00033,120]
[424731521,1781094657000,-184.79587009,0.00033,120]
[424731526,1781094657000,-620.43,0.00033014,5]
[424731522,1781094657000,-360.0,0.00033,120]
[424731525,1781094657000,-153.80113636,0.00033,2]
[424731528,1781094657000,-647.0,0.0003303,16]
[424731527,1781094657000,-150.0,0.00033018,7]
[424731523,1781094657000,-284.95203121,0.00033,30]
[424731533,1781094657000,-780.999218,0.00033177,120]
[424731529,1781094657000,-150.0,0.00033043,7]
[424731531,1781094657000,-165.1956385,0.00033073,2]
[424731530,1781094657000,-736.56,0.00033047,14]
[424731500,1781094657000,-1118.48064363,0.00032926,2]
[424731478,1781094657000,-500.0,0.00032877,7]
[424731501,1781094657000,-1242.67922829,0.00032926,2]
[424731534,1781094657000,-2000.0,0.000332,7]
[424731482,1781094657000,-500.0,0.00032877,7]
[424731477,1781094657000,-500.0,0.00032877,7]
[424731479,1781094657000,-500.0,0.00032877,7]
[424731480,1781094657000,-500.0,0.00032877,7]
[424731481,1781094657000,-500.0,0.00032877,7]
[424731494,1781094657000,-1569.54925575,0.00032926,2]
[424731484,1781094657000,-500.0,0.00032877,7]
[424731483,1781094657000,-500.0,0.00032877,7]
[424731485,1781094657000,-500.0,0.00032877,7]
[424731488,1781094657000,-5000.0,0.00032877,120]
[424731486,1781094657000,-500.0,0.00032877,7]
[424731504,1781094657000,-1128.50324371,0.00032927,2]
[424731493,1781094657000,-1359.26914146,0.00032926,2]
[424731495,1781094657000,-1876.39541664,0.00032926,2]
[424731489,1781094657000,-5000.0,0.00032877,120]
[424731491,1781094657000,-798.405308,0.00032877,120]
[424731490,1781094657000,-5000.0,0.00032877,120]
[424731492,1781094657000,-150.0,0.00032909,7]
[424731497,1781094657000,-1175.32796502,0.00032926,2]
[424731507,1781094657000,-462.37439283,0.00033,120]
[424731506,1781094657000,-503.92688212,0.00033,120]
[424731505,1781094657000,-1256.73987133,0.00032927,2]
[424731496,1781094657000,-1057.5575473,0.00032926,2]
[424731498,1781094657000,-1903.04616568,0.00032926,2]
[424731499,1781094657000,-1231.40054223,0.00032926,2]
[424731487,1781094657000,-167.68371866,0.00032877,2]
[424731532,1781094657000,-150.0,0.00033128,7]
[424731591,1781094657000,-150.0,0.00033699,60]
[424731539,1781094657000,-248.0,0.0003323,30]
[424731577,1781094657000,-150.0,0.00033699,60]
[424731567,1781094657000,-482.21,0.00033468,2]
[424731572,1781094657000,-150.0,0.00033565,7]
[424731569,1781094657000,-185.08,0.00033468,2]
[424731571,1781094657000,-292.32,0.0003351,7]
[424731568,1781094657000,-396.12,0.00033468,2]
[424731570,1781094657000,-650.117711,0.00033477,120]
[424731575,1781094657000,-150.0,0.00033674,7]
[424731574,1781094657000,-647.0,0.00033657,16]
[424731573,1781094657000,-47365.40264775,0.00033629,2]
[424731576,1781094657000,-150.0,0.00033699,60]
[424731578,1781094657000,-150.0,0.00033699,60]
[424731566,1781094657000,-185.08,0.00033468,2]
[424731579,1781094657000,-218.83171562,0.00033699,60]
[424731581,1781094657000,-150.0,0.00033699,60]
[424731585,1781094657000,-150.0,0.00033699,60]
[424731586,1781094657000,-500.0,0.00033699,60]
[424731584,1781094657000,-500.0,0.00033699,60]
[424731582,1781094657000,-168.48877466,0.00033699,60]
[424731588,1781094657000,-150.0,0.00033699,60]
[424731583,1781094657000,-500.0,0.00033699,60]
[424731587,1781094657000,-347.0,0.00033699,60]
[424731589,1781094657000,-150.0,0.00033699,60]
[424731590,1781094657000,-150.0,0.00033699,60]
[424731593,1781094657000,-150.0,0.00033699,60]
[424731535,1781094657000,-890.0,0.00033222,30]
[424731580,1781094657000,-150.0,0.00033699,60]
[424731565,1781094657000,-185.08,0.00033468,2]
[424731592,1781094657000,-150.0,0.00033699,60]
[424731559,1781094657000,-150.0,0.00033456,7]
[424731542,1781094657000,-735.0,0.0003323,30]
[424731536,1781094657000,-293.0,0.00033222,30]
[424731538,1781094657000,-255.0,0.00033222,30]
[424731537,1781094657000,-515.0,0.00033222,30]
[424731540,1781094657000,-266.0,0.0003323,30]
[424731541,1781094657000,-212.0,0.0003323,30]
[424731552,1781094657000,-150.0,0.00033237,7]
[424731564,1781094657000,-185.09,0.00033468,2]
[424731553,1781094657000,-150.0,0.00033237,7]
[424731543,1781094657000,-811.0,0.0003323,30]
[424731545,1781094657000,-217.0,0.0003323,30]
[424731549,1781094657000,-150.0,0.00033237,7]
[424731548,1781094657000,-249.0,0.0003323,30]
[424731544,1781094657000,-256.0,0.0003323,30]
[424731547,1781094657000,-289.0,0.0003323,30]
[424731546,1781094657000,-793.0,0.0003323,30]
[424731562,1781094657000,-573.19,0.00033468,2]
[424731555,1781094657000,-280.03725111,0.00033279,2]
[424731563,1781094657000,-396.01,0.00033468,2]
[424731558,1781094657000,-150.33448,0.00033448,2]
[424731561,1781094657000,-185.08,0.00033468,2]
[424731556,1781094657000,-150.0,0.00033346,7]
[424731557,1781094657000,-150.0,0.00033431,7]
[424731554,1781094657000,-350.0,0.00033241,28]
[424731550,1781094657000,-150.0,0.00033237,7]
[424731551,1781094657000,-150.0,0.00033237,7]
[424731560,1781094657000,-482.21,0.00033467,2]
[424731633,1781094658000,-150.0,0.00033699,60]
[424731629,1781094658000,-610.0,0.00033699,2]
[424731631,1781094658000,-150.0,0.00033699,60]
[424731634,1781094658000,-610.0,0.00033699,2]
[424731627,1781094658000,-610.0,0.00033699,2]
[424731619,1781094658000,-610.0,0.00033699,2]
[424731628,1781094658000,-150.0,0.00033699,60]
[424731635,1781094658000,-150.0,0.00033699,60]
[424731625,1781094658000,-150.0,0.00033699,60]
[424731624,1781094658000,-610.0,0.00033699,2]
[424731626,1781094658000,-610.0,0.00033699,2]
[424731632,1781094658000,-610.0,0.00033699,2]
[424731645,1781094658000,-500.0,0.00033699,60]
[424731647,1781094658000,-150.0,0.00033699,60]
[424731637,1781094658000,-150.0,0.00033699,60]
[424731636,1781094658000,-618.58040011,0.00033699,2]
[424731640,1781094658000,-150.0,0.00033699,60]
[424731639,1781094658000,-150.0,0.00033699,60]
[424731646,1781094658000,-397.37892481,0.00033699,60]